bitfinex-derivatives/quotes_ETHF0:USTF0_20250110
["timestamp","ask_amount","ask_price","bid_price","bid_amount"]
[1736551158312,3.2078,3271.1,3270.8,0.8842]
[1736551158600,0.30576,3271.0,3270.9,0.30577]
[1736551161011,0.30576,3271.0,3270.8,1.18997]
[1736551161214,0.30577,3270.9,3270.8,0.8842]
[1736551161506,0.3058,3270.6,3270.5,0.3058]
[1736551161705,0.435,3270.8,3270.6,0.30579]
[1736551161906,0.30579,3270.7,3270.5,0.7788]
[1736551162105,0.30579,3270.7,3270.6,0.4632]
[1736551166611,0.3058,3270.6,3270.5,0.473]
[1736551167320,0.4637,3270.7,3270.5,0.473]
[1736551167513,0.76949,3270.7,3270.6,0.3058]
[1736551170920,0.4637,3270.7,3270.6,0.3058]
[1736551179425,0.4637,3270.7,3270.6,1.3159014]
[1736551179620,3.51357,3270.9,3270.8,0.30578]
[1736551179621,3.2078,3270.9,3270.8,0.30578]
[1736551179927,3.2078,3270.9,3270.8,1.3158814]
[1736551182319,0.4734,3271.2,3270.8,1.0101014]
[1736551182524,0.4734,3271.2,3271.1,0.30575]
[1736551190633,3.2078,3271.3,3271.2,0.30574]
[1736551190827,3.2078,3271.3,3271.2,1.3158414]
[1736551191029,0.3057,3271.6,3271.5,0.30571]
[1736551191937,0.30571,3271.5,3271.4,0.30572]
[1736551192235,0.30571,3271.6,3271.3,0.4667]
[1736551192533,0.30572,3271.5,3271.3,0.4667]
[1736551192834,0.30572,3271.5,3271.4,0.30572]
[1736551195144,1.4613014,3271.7,3270.9,3.2078]
[1736551195332,0.30573,3271.3,3271.2,0.30573]
[1736551196833,0.30573,3271.4,3271.3,0.30573]
[1736551200637,4.2179014,3271.5,3271.0,0.4487]
[1736551200831,3.2078,3271.5,3271.4,0.30572]
[1736551201237,3.51351,3271.5,3271.4,0.30572]
[1736551201545,0.30573,3271.4,3271.3,0.30573]
[1736551202337,4.2179014,3271.5,3270.3,7.95664116]
[1736551202538,0.30577,3270.9,3270.8,0.30577]
[1736551206045,0.78576,3271.0,3270.8,0.30577]
[1736551206840,0.48,3271.0,3270.9,0.30577]
[1736551207543,0.48,3271.0,3270.9,1.3158714]
[1736551209054,0.30577,3270.9,3270.8,0.30577]
[1736551210345,0.78487,3270.9,3270.8,0.30577]
[1736551211148,0.4791,3270.9,3270.8,0.30577]
[1736551212147,0.4791,3270.9,3270.8,0.30578]
[1736551212743,0.78487,3270.9,3270.8,0.30578]
[1736551213548,0.4791,3270.9,3270.8,0.30578]
[1736551217947,3.2078,3271.1,3271.0,0.30576]
[1736551230765,0.4806,3271.4,3271.3,0.30573]
[1736551231359,3.51351,3271.6,3271.5,0.30571]
[1736551231360,3.2078,3271.6,3271.5,0.30571]
[1736551237057,0.30572,3271.5,3271.1,0.4808]
[1736551237265,0.30572,3271.5,3271.3,0.30572]
[1736551237266,0.76912,3271.5,3271.3,0.30572]
[1736551237470,0.76912,3271.5,3271.4,0.30572]
[1736551237961,0.4634,3271.5,3271.4,0.30572]
[1736551247374,0.76911,3271.5,3271.4,0.30572]
[1736551247574,0.30572,3271.4,3271.3,0.30573]
[1736551248072,0.4634,3271.5,3271.3,0.30573]
[1736551248271,0.76912,3271.5,3271.3,0.30573]
[1736551249375,3.97692,3271.5,3271.3,0.30573]
[1736551250071,0.76912,3271.5,3271.4,0.30572]
[1736551250277,3.97692,3271.5,3271.3,0.30573]
[1736551251579,3.97692,3271.5,3271.1,0.4808]
[1736551251770,3.97692,3271.5,3271.4,0.30572]
[1736551252576,3.97692,3271.5,3271.3,0.30572]
[1736551252776,3.97692,3271.5,3271.4,0.30572]
[1736551253077,3.6712,3271.5,3270.8,3.2078]
[1736551253271,0.4634,3271.5,3271.1,0.30574]
[1736551253466,3.51354,3271.2,3271.1,0.30574]
[1736551254376,3.2078,3271.2,3271.1,0.30574]
[1736551254779,4.1337,3271.2,3271.1,0.30574]
[1736551256174,3.6682,3271.2,3271.1,0.30574]
[1736551257578,0.4604,3271.2,3271.1,0.30574]
[1736551262979,1.47036668,3271.2,3270.7,0.4351]
[1736551263281,1.00996668,3271.0,3270.9,0.30576]
[1736551263784,1.00996668,3271.0,3270.7,0.4351]
[1736551264277,1.00996668,3270.8,3270.7,0.74089]
[1736551268977,1.00996668,3271.0,3270.7,0.4351]
[1736551269174,1.00996668,3271.0,3270.9,0.30576]
[1736551270984,1.31572668,3271.0,3270.7,0.4351]
[1736551271288,1.31574668,3270.8,3270.6,0.30579]
[1736551271484,0.4649,3270.7,3270.6,0.30579]
[1736551271695,0.9375,3270.7,3270.6,0.30579]
[1736551272189,0.9375,3270.7,3270.5,0.4807]
[1736551272388,1.31576668,3270.6,3270.5,0.4807]
[1736551272589,1.44886668,3270.6,3270.4,1.3058]
[1736551272787,0.3058,3270.5,3270.4,1.3058]
[1736551273378,1.44886668,3270.6,3270.4,1.3058]
[1736551273583,1.75466668,3270.6,3270.4,1.3058]
[1736551274396,0.3058,3270.5,3270.4,1.0]
[1736551275084,0.3058,3270.5,3269.7,0.30588]
[1736551275085,0.30586,3269.9,3269.7,0.30588]
[1736551275293,0.4776,3269.8,3269.7,0.30588]
[1736551275984,0.4776,3269.8,3269.5,0.436]
[1736551276189,0.4776,3269.8,3269.7,0.30588]
[1736551276489,0.30588,3269.7,3269.5,0.74189]
[1736551276691,0.4776,3269.8,3269.5,0.74189]
[1736551276692,0.78348,3269.8,3269.5,0.74189]
[1736551276880,0.78348,3269.8,3269.6,0.30588]
[1736551277486,0.78348,3269.8,3269.5,0.74189]
[1736551278094,0.4776,3269.8,3269.7,0.30588]
[1736551278289,0.9125,3269.8,3269.7,0.30588]
[1736551281394,1.21837,3269.8,3269.6,0.30588]
[1736551282293,4.42617,3269.8,3269.6,0.30588]
[1736551283090,4.1203,3269.8,3269.5,0.436]
[1736551283295,0.30592,3269.3,3269.2,0.4392]
[1736551283496,0.30591,3269.4,3269.2,0.74513]
[1736551283691,0.9315,3269.3,3269.2,0.74513]
[1736551283896,1.69102,3269.3,3269.2,0.4392]
[1736551284189,1.3851,3269.3,3269.2,0.74513]
[1736551284996,1.3851,3269.3,3269.2,0.4392]
[1736551285196,1.69102,3269.3,3269.2,0.4392]
[1736551286595,0.30594,3269.1,3268.9,0.4613]
[1736551286900,6.72824316,3269.3,3268.9,0.4406]
[1736551287099,0.30594,3269.0,3268.9,0.4406]
[1736551287306,6.72824316,3269.3,3268.4,0.4465]
[1736551287508,3.51376,3268.9,3268.6,0.74488]
[1736551288006,3.51376,3268.9,3268.6,0.4389]
[1736551288203,3.51376,3268.9,3268.7,0.30597]
[1736551288807,3.2078,3268.9,3268.7,0.30597]
[1736551289306,3.51375,3268.9,3268.7,0.30597]
[1736551290814,3.51375,3268.9,3268.6,0.4389]
[1736551291308,3.51375,3268.9,3268.7,0.30597]
[1736551294912,0.4672,3268.8,3268.7,0.30597]
[1736551295614,0.77317,3268.8,3268.6,0.4389]
[1736551295908,1.71517,3268.8,3268.6,0.74488]
[1736551296111,1.4092,3268.8,3268.6,0.74488]
[1736551296309,1.4092,3268.8,3268.7,0.30597]
[1736551296710,0.9311,3268.8,3268.7,0.30597]
[1736551300215,0.94249309,3268.8,3268.7,0.30597]
[1736551311922,1.95389657,3268.8,3268.7,0.30597]
[1736551313919,1.95272154,3268.8,3268.7,0.30597]
[1736551314819,0.94131806,3268.8,3268.7,0.30597]
[1736551316625,0.01139309,3268.8,3268.7,1.78007348]
[1736551319019,2.975,3269.2,3269.1,0.30594]
[1736551322421,4.21920348,3269.4,3269.0,0.4433]
[1736551322626,0.30592,3269.3,3269.2,0.30592]
[1736551322826,4.52511348,3269.4,3269.3,0.30592]
[1736551323028,0.30592,3269.3,3269.2,0.30592]
[1736551329729,0.30592,3269.3,3269.2,1.30592]
[1736551330626,3.2078,3269.4,3269.3,0.30592]
[1736551330831,0.78739,3269.6,3269.5,0.3059]
[1736551333224,0.4815,3269.6,3269.5,0.3059]
[1736551334225,3.51364,3270.2,3270.1,0.30583]
[1736551334528,0.30585,3270.1,3270.0,0.30584]
[1736551334934,0.30585,3270.0,3269.9,0.30586]
[1736551335930,0.30585,3270.0,3269.8,0.30587]
[1736551336428,0.30585,3270.0,3269.9,0.4729]
[1736551337531,4.21920348,3270.2,3269.9,0.4729]
[1736551337737,3.2078,3270.2,3269.9,0.4729]
[1736551338035,3.2078,3270.2,3270.1,0.30584]
[1736551338539,0.4645271,3270.5,3270.0,1.45820348]
[1736551338834,1.78174058,3270.5,3270.2,0.30583]
[1736551339034,0.4681,3270.4,3270.2,0.30583]
[1736551339234,0.4681,3270.4,3270.3,0.4577]
[1736551339636,0.4681,3270.4,3270.3,0.76352]
[1736551342630,0.4681,3270.4,3270.3,0.4577]
[1736551342928,0.77391,3270.4,3270.3,0.4577]
[1736551347139,0.4681,3270.4,3270.3,0.4577]
[1736551347441,0.4681,3270.4,3270.3,0.76352]
[1736551347736,0.4645271,3270.5,3270.4,0.30581]
[1736551349246,0.30584,3270.1,3269.9,0.30586]
[1736551349545,1.31724348,3270.1,3269.8,0.76907]
[1736551349746,1.3552,3270.0,3269.8,0.76907]
[1736551350040,1.3552,3270.0,3269.9,0.30586]
[1736551354348,3.2078,3270.2,3270.1,0.30584]
[1736551354542,1.47593058,3270.5,3270.4,0.30581]
[1736551355047,1.95613058,3270.5,3270.4,0.30581]
[1736551355245,0.9447271,3270.5,3270.4,0.30581]
[1736551356448,1.2505271,3270.5,3270.4,0.30581]
[1736551357544,0.9447271,3270.5,3269.9,0.9432]
[1736551357744,0.30583,3270.3,3269.9,0.9432]
[1736551357948,0.30583,3270.3,3270.2,0.30583]
[1736551358939,0.30582,3270.4,3270.3,0.30582]
[1736551359545,0.30581,3270.4,3270.2,0.30582]
[1736551359947,0.30581,3270.4,3269.9,0.9432]
[1736551360149,0.30581,3270.4,3270.3,0.30582]
[1736551361551,0.3177668,3270.4,3270.3,0.30582]
[1736551366752,0.30583,3270.3,3270.2,0.30583]
[1736551367655,0.3177868,3270.3,3270.2,0.30583]
[1736551374157,0.30584,3270.2,3270.1,0.30584]
[1736551374569,0.3177968,3270.2,3270.1,0.30584]
[1736551377061,0.0119568,3270.2,3270.1,0.30584]
[1736551377266,0.3177868,3270.2,3270.1,0.30584]
[1736551381562,0.0119568,3270.2,3269.8,0.4632]
[1736551381769,0.30586,3269.9,3269.8,0.4632]
[1736551382772,0.3178168,3269.9,3269.8,0.4632]
[1736551383467,0.3178168,3269.9,3269.8,0.76907]
[1736551384361,0.3178168,3269.9,3269.8,0.4632]
[1736551385768,0.3178168,3269.9,3269.8,0.76907]
[1736551386162,0.3178168,3269.9,3269.8,0.4632]
[1736551386777,0.3178168,3269.9,3269.8,0.76907]
[1736551388470,1.32829496,3269.9,3269.8,0.4632]
[1736551388677,0.30589,3269.6,3269.5,0.30589]
[1736551389479,0.30589,3269.7,3269.5,0.30589]
[1736551389679,0.0119568,3269.6,3269.5,0.30589]
[1736551395979,3.2078,3270.1,3269.5,5.0]
[1736551396181,3.6723271,3270.5,3270.0,1.01047816]
[1736551396383,3.6723271,3270.5,3270.4,0.30581]
[1736551397485,0.4645271,3270.5,3270.4,0.30581]
[1736551399489,1.3642,3270.9,3270.4,1.01047816]
[1736551399789,2.68044816,3270.9,3270.7,0.30579]
[1736551400288,2.68044816,3270.9,3270.8,0.30578]
[1736551402785,1.66997,3270.9,3270.8,0.30578]
[1736551403087,4.87777,3270.9,3270.8,0.30578]
[1736551406796,0.30579,3270.7,3270.6,0.30579]
[1736551409592,0.30578,3270.8,3270.7,0.30578]
[1736551411403,0.30579,3270.7,3270.6,0.30579]
[1736551414904,4.572,3270.9,3270.6,1.01047816]
[1736551415098,0.30579,3270.8,3270.7,0.30578]
[1736551415295,0.30579,3270.8,3270.7,0.74128]
[1736551415903,0.30579,3270.8,3270.7,0.4355]
[1736551419210,5.58247816,3270.9,3270.4,1.01047816]
[1736551419508,0.3058,3270.6,3270.5,0.7835]
[1736551424408,4.572,3270.9,3270.5,0.4777]
[1736551424609,0.30579,3270.7,3270.6,0.30579]
[1736551424810,0.3058,3270.6,3270.5,0.7835]
[1736551426414,0.3058,3270.6,3270.5,0.4777]
[1736551429413,0.3058,3270.6,3270.5,0.7835]
[1736551431214,4.572,3270.9,3270.5,0.4777]
[1736551431419,0.30578,3270.8,3270.7,0.30578]
[1736551431718,0.30579,3270.7,3270.6,2.20756816]
[1736551431919,0.30578,3270.8,3270.7,0.30578]
[1736551434418,0.30578,3270.8,3270.7,0.30578]
[1736551435318,4.1113,3270.9,3270.6,1.90177816]
[1736551435614,3.2078,3270.9,3270.8,1.31625816]
[1736551436715,4.1538,3271.4,3271.3,0.30573]
[1736551437124,3.2078,3271.4,3271.3,0.30573]
[1736551437318,3.2078,3271.4,3271.3,0.74933]
[1736551437521,3.2078,3271.4,3271.3,1.68683]
[1736551438022,0.3057,3271.6,3271.4,0.30572]
[1736551438319,1.3736,3271.7,3271.4,1.01047816]
[1736551438815,0.30571,3271.6,3271.5,0.30571]
[1736551440617,1.3736,3271.7,3271.4,1.01047816]
[1736551440816,0.30575,3271.2,3271.0,0.30575]
[1736551441015,0.30575,3271.2,3271.0,1.45387816]
[1736551441220,0.30573,3271.3,3271.0,1.45387816]
[1736551441422,0.76183,3271.3,3271.2,1.01047816]
[1736551442722,0.4561,3271.3,3271.2,1.31621816]
[1736551443017,0.76183,3271.3,3271.2,1.31621816]
[1736551443221,0.76183,3271.3,3271.2,1.01047816]
[1736551447427,0.76183,3271.3,3271.2,1.31621816]
[1736551448521,0.4561,3271.3,3271.2,1.31621816]
[1736551451223,3.5135,3271.6,3271.5,0.30571]
[1736551451428,3.9863,3271.6,3271.5,0.30571]
[1736551451729,0.4728,3271.6,3271.5,0.30571]
[1736551454429,0.7785,3271.6,3271.5,0.30571]
[1736551455335,0.4728,3271.6,3271.5,0.30571]
[1736551455930,0.7785,3271.6,3271.5,0.30571]
[1736551456132,0.30573,3271.3,3271.0,0.4434]
[1736551456341,0.30573,3271.3,3271.1,0.30575]
[1736551456342,1.25474,3271.2,3271.1,0.30575]
[1736551456637,0.30575,3271.1,3271.0,0.74915]
[1736551457026,0.78215,3271.1,3271.0,0.74915]
[1736551457235,0.78215,3271.1,3270.9,0.30576]
[1736551457941,0.4764,3271.1,3270.9,0.30576]
[1736551458131,0.30576,3271.0,3270.9,0.30576]
[1736551458439,0.4764,3271.1,3270.8,0.30577]
[1736551458641,1.48687816,3271.1,3270.7,3.6553]
[1736551458838,0.30576,3271.0,3270.8,0.30577]
[1736551460332,0.30577,3270.9,3270.8,0.30577]
[1736551460940,0.30576,3271.0,3270.8,0.30577]
[1736551463037,1.01047816,3270.9,3270.6,0.30579]
[1736551463327,0.30581,3270.4,3270.3,3.2078]
[1736551463732,0.30581,3270.4,3270.3,3.51362]
[1736551463929,0.77841,3270.4,3270.3,3.51362]
[1736551464332,0.77841,3270.4,3270.0,1.44537816]
[1736551464333,0.4726,3270.4,3270.0,0.4349]
[1736551464536,0.4726,3270.4,3270.0,0.74075]
[1736551464537,0.30583,3270.2,3270.0,0.74075]
[1736551464739,0.9024,3270.1,3270.0,0.74075]
[1736551464946,0.9024,3270.1,3270.0,1.75122816]
[1736551465135,0.4726,3270.4,3270.0,1.44537816]
[1736551465444,0.30583,3270.2,3270.1,0.30584]
[1736551465641,0.9024,3270.3,3270.2,0.30583]
[1736551465642,1.20823,3270.3,3270.2,0.30583]
[1736551466836,1.20823,3270.3,3270.0,1.44537816]
[1736551467047,0.9024,3270.3,3270.1,0.30584]
[1736551467242,0.30584,3270.2,3270.1,0.30584]
[1736551468041,1.20823,3270.3,3270.2,0.30583]
[1736551469043,0.30583,3270.2,3270.1,0.30584]
[1736551469942,1.91287816,3270.3,3269.8,4.21827816]
[1736551470145,0.30586,3269.9,3269.8,3.2078]
[1736551471842,0.30586,3269.9,3269.8,3.51367]
[1736551472243,0.30583,3270.2,3269.8,4.21827816]
[1736551472546,1.348,3270.3,3270.0,1.01047816]
[1736551472739,1.65383,3270.3,3270.1,0.30584]
[1736551472938,1.65383,3270.3,3270.1,0.4354]
[1736551472939,0.30583,3270.2,3270.1,0.4354]
[1736551474648,1.65383,3270.3,3270.2,0.30583]
[1736551479650,0.30583,3270.2,3270.1,0.74124]
[1736551480651,0.30583,3270.2,3270.1,0.4354]
[1736551480954,0.30583,3270.2,3270.1,0.74124]
[1736551484362,0.30582,3270.4,3270.3,0.30581]
[1736551488453,3.2078,3270.5,3270.1,0.8702]
[1736551488656,3.2078,3270.5,3270.4,1.31628816]
[1736551489062,3.5136,3270.5,3270.4,0.30581]
[1736551489765,0.3058,3270.5,3270.4,0.30581]
[1736551492456,0.3058,3270.6,3270.4,0.30581]
[1736551492865,0.3058,3270.6,3270.5,0.4807]
[1736551493769,0.3058,3270.6,3270.5,0.7865]
[1736551494267,3.2078,3270.9,3270.5,0.4807]
[1736551494459,2.975,3271.0,3270.9,0.30577]
[1736551494770,0.30574,3271.2,3270.8,1.01047816]
[1736551494771,0.30572,3271.5,3271.3,0.30573]
[1736551494971,0.30571,3271.6,3271.4,0.4551]
[1736551495466,3.2078,3271.7,3271.6,0.3057]
[1736551495767,1.21438,3271.9,3271.7,0.30569]
[1736551496270,0.30569,3271.8,3271.5,0.30571]
[1736551496571,0.3057,3271.7,3271.5,0.30571]
[1736551497071,0.30569,3271.8,3271.6,0.3057]
[1736551497672,0.9087,3271.9,3271.4,0.4551]
[1736551497971,0.9087,3271.9,3271.7,0.30569]
[1736551497972,1.21438,3271.9,3271.7,0.30569]
[1736551498275,0.30568,3271.9,3271.4,0.4551]
[1736551498573,0.30568,3271.9,3271.7,0.30569]
[1736551499171,0.30569,3271.7,3271.6,0.3057]
[1736551500875,0.30568,3271.9,3271.7,0.30569]
[1736551502176,0.30568,3271.8,3271.5,0.4598]
[1736551502371,0.30568,3271.8,3271.6,0.30569]
[1736551503474,0.30568,3271.8,3271.7,0.30569]
[1736551504076,4.0783,3272.1,3271.5,0.4598]
[1736551504379,0.30564,3272.3,3272.1,0.30565]
[1736551504668,0.30564,3272.3,3272.2,0.4647]
[1736551505268,0.46423987,3272.4,3272.2,0.4647]
[1736551505474,0.30564,3272.3,3272.2,0.4647]
[1736551509279,0.76986987,3272.4,3272.2,0.77035]
[1736551509472,0.46423987,3272.4,3272.3,0.30564]
[1736551509674,4.1262,3272.5,3272.2,0.4647]
[1736551509877,0.30563,3272.4,3272.3,0.30563]
[1736551510176,4.43182,3272.5,3272.3,0.30563]
[1736551512176,1.22402,3272.5,3272.3,0.30563]
[1736551512775,1.22402,3272.5,3272.4,0.30563]
[1736551513282,1.22402,3272.5,3272.2,0.4647]
[1736551513482,1.22402,3272.5,3272.3,0.30563]
[1736551515684,1.22402,3272.5,3272.2,0.4647]
[1736551515883,1.22402,3272.5,3272.3,0.30563]
[1736551516085,0.30563,3272.4,3272.2,0.4647]
[1736551516289,0.30563,3272.4,3272.3,0.30564]
[1736551516780,1.22402,3272.5,3272.3,0.30564]
[1736551519384,1.22402,3272.5,3272.4,0.01561887]
[1736551519784,1.22402,3272.5,3272.4,0.32124887]
[1736551520276,1.22402,3272.5,3272.4,0.01561887]
[1736551525189,1.22402,3272.5,3272.4,0.32124887]
[1736551525391,1.22402,3272.5,3272.4,0.01561887]
[1736551525688,1.22402,3272.5,3272.4,0.32124887]
[1736551528700,1.22402,3272.5,3272.4,0.01561887]
[1736551530305,1.22402,3272.5,3272.4,0.32124887]
[1736551533902,0.9184,3272.5,3272.4,0.32124887]
[1736551534101,0.458,3272.5,3272.4,0.32124887]
[1736551537510,0.45903336,3272.5,3272.4,0.32124887]
[1736551539703,0.76465336,3272.5,3272.4,0.01561887]
[1736551541126,3.97245336,3272.5,3272.4,0.01561887]
[1736551544002,6.94745336,3272.5,3272.4,0.01561887]
[1736551556015,4.9815479,3272.5,3272.4,0.01561887]
[1736551562518,3.51445336,3272.5,3272.4,0.01561887]
[1736551562721,4.5235479,3272.5,3272.4,0.01561887]
[1736551563316,1.3157479,3272.5,3272.4,0.01561887]
[1736551563520,4.5235479,3272.5,3272.4,0.01561887]
[1736551567615,4.5235479,3272.5,3272.4,0.49251887]
[1736551567816,3.51445336,3272.5,3272.4,0.49251887]
[1736551571926,3.51445336,3272.5,3272.4,0.79814887]
[1736551573519,3.20883336,3272.5,3272.4,0.79814887]
[1736551573721,0.00103336,3272.5,3272.4,0.79814887]
[1736551579330,3.2078,3272.9,3272.4,4.00594887]
[1736551579535,3.2078,3272.9,3272.8,1.31468454]
[1736551580328,3.2078,3272.9,3272.8,1.33030341]
[1736551581336,0.30558,3273.0,3272.9,0.30558]
[1736551582032,0.30558,3273.0,3272.9,0.78478]
[1736551582431,0.30558,3273.0,3272.9,0.80039887]
[1736551582635,0.30558,3273.0,3272.9,1.24939887]
[1736551586137,3.96095,3273.3,3273.2,0.30555]
[1736551586438,3.2078,3273.3,3273.2,0.01561887]
[1736551586740,3.51334,3273.3,3273.2,0.01561887]
[1736551590943,0.30554,3273.3,3273.2,0.32116887]
[1736551591143,0.30554,3273.3,3273.2,0.01561887]
[1736551592644,0.30554,3273.3,3273.2,0.32116887]
[1736551595245,1.3784,3273.6,3273.2,0.01561887]
[1736551595452,0.28992113,3273.4,3273.3,0.30554]
[1736551595950,0.28992113,3273.4,3273.1,1.00909454]
[1736551595951,0.30555,3273.3,3273.2,0.30555]
[1736551596541,0.30557,3273.0,3272.9,0.75458]
[1736551596745,0.30557,3273.0,3272.9,1.76367454]
[1736551598053,0.9339,3273.1,3272.9,1.45809454]
[1736551598255,1.23947,3273.1,3273.0,0.30557]
[1736551603563,0.9339,3273.1,3273.0,0.30557]
[1736551604558,0.454,3273.1,3273.0,0.30557]
[1736551604759,0.4801,3273.2,3272.9,1.45809454]
[1736551604760,0.4801,3273.2,3273.1,0.30556]
[1736551605066,0.4801,3273.2,3273.1,1.31465454]
[1736551605569,3.51335,3273.3,3273.1,1.31465454]
[1736551605570,3.2078,3273.3,3273.2,0.30555]
[1736551605859,3.2078,3273.3,3273.2,0.75635]
[1736551608769,3.2078,3273.3,3273.2,0.30555]
[1736551610862,4.0989,3273.5,3273.4,0.30553]
[1736551611963,4.0989,3273.5,3273.4,0.78793]
[1736551615664,0.8911,3273.5,3273.4,0.78793]
[1736551615865,4.0989,3273.5,3273.4,0.78793]
[1736551616765,4.40442,3273.5,3273.4,0.78793]
[1736551618466,3.2078,3273.5,3273.4,0.78793]
[1736551620665,3.51332,3273.5,3273.4,0.30553]
[1736551624268,3.2078,3273.5,3273.4,0.30553]
[1736551625666,3.51332,3273.5,3273.4,0.30553]
[1736551627069,1.00909454,3275.0,3273.3,1.46709454]
[1736551627070,3.2078,3274.3,3273.3,1.46709454]
[1736551627275,3.2078,3274.3,3274.2,1.31455454]
[1736551635575,3.2078,3274.3,3273.8,0.4482]
[1736551635880,0.30546,3274.2,3274.0,0.30547]
[1736551636083,0.446,3274.1,3274.0,0.30547]
[1736551639482,3.2078,3274.3,3273.8,0.4813]
[1736551639680,3.2078,3274.3,3274.2,0.30546]
[1736551642880,3.2078,3274.3,3274.2,0.75216]
[1736551646484,3.2078,3274.3,3274.2,0.30546]
[1736551647381,4.122,3274.3,3274.2,0.30546]
[1736551650481,4.122,3274.3,3274.1,0.4421]
[1736551650787,4.122,3274.3,3274.2,0.30546]
[1736551651179,3.2078,3274.3,3274.2,0.30546]
[1736551652684,0.30542,3274.7,3274.1,0.4465]
[1736551652685,3.2078,3274.7,3274.1,0.4465]
[1736551652987,3.2078,3274.7,3274.6,2.43482282]
[1736551653681,0.9325,3274.8,3274.7,0.30541]
[1736551656385,0.4623,3274.8,3274.7,0.30541]
[1736551656682,4.1172,3275.1,3274.5,2.56580282]
[1736551656882,4.5547,3275.1,3275.0,0.30538]
[1736551657494,4.86007,3275.1,3274.9,0.76159]
[1736551658292,4.86007,3275.1,3275.0,0.30538]
[1736551659094,0.30538,3275.0,3274.9,0.30539]
[1736551661292,4.86008,3275.1,3275.0,0.30538]
[1736551662092,4.5547,3275.1,3274.5,2.59420282]
[1736551662394,4.86008,3275.1,3274.9,0.30539]
[1736551662586,0.30538,3275.0,3274.5,2.59420282]
[1736551662788,6.68410282,3275.1,3274.0,3.2078]
[1736551662987,3.2078,3274.7,3274.4,0.30543]
[1736551663187,0.30543,3274.5,3274.4,0.30543]
[1736551663516,0.30544,3274.4,3274.3,0.30544]
[1736551663695,0.30545,3274.3,3274.2,0.30545]
[1736551664091,0.30544,3274.4,3274.0,0.30548]
[1736551664398,0.30544,3274.4,3274.2,0.30545]
[1736551665089,0.30544,3274.4,3274.3,0.30545]
[1736551665288,0.30544,3274.5,3274.3,0.30545]
[1736551666594,0.30544,3274.4,3274.3,0.30545]
[1736551666995,1.3845,3274.6,3274.2,2.12940282]
[1736551667193,1.3845,3274.6,3274.3,0.4805]
[1736551667495,1.68993,3274.6,3274.4,0.30544]
[1736551668699,1.68993,3274.6,3274.5,0.30543]
[1736551670796,0.30543,3274.5,3274.4,0.30543]
[1736551672294,1.3845,3274.6,3273.9,2.12940282]
[1736551672492,0.30547,3274.2,3274.1,0.30546]
[1736551673100,0.77847,3274.2,3274.1,0.30546]
[1736551674304,0.30547,3274.1,3274.0,0.30548]
[1736551674499,1.19247,3274.1,3274.0,0.30548]
[1736551675299,0.887,3274.1,3274.0,0.30548]
[1736551676796,0.473,3274.2,3274.1,0.30547]
[1736551677411,0.77846,3274.2,3274.1,0.30547]
[1736551677613,0.473,3274.2,3274.1,0.30547]
[1736551679808,0.30547,3274.1,3274.0,0.30547]
[1736551680110,0.9152,3274.1,3274.0,0.30547]
[1736551686610,3.2078,3274.3,3274.2,0.30546]
[1736551689312,3.2078,3274.3,3273.9,0.4382]
[1736551689513,3.2078,3274.3,3274.2,0.30546]
[1736551689708,3.51325,3274.3,3273.9,0.4382]
[1736551689914,3.2078,3274.3,3273.9,0.4382]
[1736551690114,0.30546,3274.2,3274.0,0.30547]
[1736551690314,0.4706,3274.1,3274.0,0.30547]
[1736551693220,0.4706,3274.1,3274.0,0.30548]
[1736551694619,0.4706,3274.1,3273.5,3.2078]
[1736551694821,0.30549,3273.9,3273.3,0.4712]
[1736551695016,0.76518,3274.0,3273.8,0.3055]
[1736551695323,0.4597,3274.0,3273.3,0.4712]
[1736551695521,0.30549,3273.9,3273.7,0.3055]
[1736551696318,0.30549,3273.9,3273.8,0.3055]
[1736551696520,0.4597,3274.0,3273.8,0.3055]
[1736551696823,0.4597,3274.0,3273.9,0.30549]
[1736551700125,0.76518,3274.0,3273.9,0.30549]
[1736551707927,3.97298,3274.0,3273.9,0.30549]
[1736551711034,0.76518,3274.0,3273.9,0.30549]
[1736551711235,3.97298,3274.0,3273.9,0.30549]
[1736551712936,3.6675,3274.0,3273.9,0.30549]
[1736551713233,3.2078,3274.4,3274.3,0.30545]
[1736551713926,3.6586,3274.4,3274.3,0.30545]
[1736551714230,4.1128,3274.4,3274.3,0.30545]
[1736551714933,3.2078,3274.4,3274.3,0.30545]
[1736551715930,3.2078,3274.5,3274.0,1.3949]
[1736551716125,3.2078,3274.5,3274.4,0.30544]
[1736551717432,3.51323,3274.5,3274.4,0.30544]
[1736551719234,0.30544,3274.4,3274.3,0.30544]
[1736551720038,3.51324,3274.5,3274.3,0.30544]
[1736551720237,3.51324,3274.5,3274.4,0.4818]
[1736551720738,0.30544,3274.5,3274.4,0.4818]
[1736551722042,0.30544,3274.5,3274.4,0.78724]
[1736551727442,0.30544,3274.5,3274.4,0.4818]
[1736551727633,0.472,3274.5,3274.0,0.9127]
[1736551727840,3.51326,3274.2,3274.1,0.4525]
[1736551733040,3.2078,3274.2,3273.5,2.12940282]
[1736551733238,0.903,3274.1,3273.6,0.4464]
[1736551733441,0.4696,3274.0,3273.6,0.75191]
[1736551733645,0.30551,3273.7,3273.6,0.75191]
[1736551735341,3.51331,3273.7,3273.6,0.75191]
[1736551735735,3.51331,3273.7,3273.6,0.4464]
[1736551735940,0.30551,3273.6,3273.5,0.30552]
[1736551736141,1.22461,3273.6,3273.5,0.30552]
[1736551736641,1.22461,3273.6,3273.4,0.77183]
[1736551736940,1.22461,3273.6,3273.5,0.30552]